[Event "Asian Amateur Rapid 2024"]
[Site "Al Ain"]
[Date "2024.12.15"]
[Round "6.7"]
[White "Sharma Pankaj"]
[Black "Mujahid Bin Yazeed"]
[Result "0-1"]
[ECO "C20"]
[WhiteElo "1861"]
[BlackElo "1837"]
[Annotator "NA COMBH"]
[PlyCount "100"]
[EventDate "2024.12.15"]
[EventType "swiss"]
[EventCountry "UAE"]
[SourceTitle "playchess.com"]
[Source "ChessBase"]
[SourceQuality "1"]
[TimeControl "900+10"]

1. c4 {[%emt 0:00:01]} e5 {[%emt 0:00:08]} 2. Nc3 {[%emt 0:00:01]} Nc6 {[%emt 0:01:20]} 3. e4 {[%emt 0:00:06]} Bc5 {[%emt 0:00:30]} 4. g3 {[%emt 0:00:06]} h5 {[%emt 0:00:22]} 5. h3 {[%emt 0:00:19]} a6 {[%emt 0:00:31]} 6. Bg2 {[%emt 0:00:05]} d6 {[%emt 0:00:04]} 7. Nge2 {[%emt 0:00:08]} Be6 {[%emt 0:00:23]} 8. d3 {[%emt 0:00:02]} Qd7 {[%emt 0:00:42]} 9. a3 {[%emt 0:00:03]} Ba7 {[%emt 0:00:05]} 10. Nd5 {[%emt 0:00:19]} f5 {[%emt 0:00:39]} 11. b4 {[%emt 0:01:27]} Nf6 {[%emt 0:01:10]} 12. Rb1 {[%emt 0:00:07]} Ne7 {[%emt 0:00:25]} 13. Bg5 {[%emt 0:00:09]} Bxd5 {[%emt 0:00:20]} 14. cxd5 {[%emt 0:00:20]} O-O {[%emt 0:00:30]} 15. O-O {[%emt 0:00:07]} fxe4 {[%emt 0:00:37]} 16. dxe4 {[%emt 0:00:05]} Nh7 {[%emt 0:00:38]} 17. Bd2 {[%emt 0:02:38]} h4 {[%emt 0:00:27]} 18. g4 {[%emt 0:00:34]} g5 {[%emt 0:00:51]} 19. Qc1 {[%emt 0:00:26]} Ng6 {[%emt 0:00:53]} 20. Bxg5 {[%emt 0:00:29]} Nxg5 {[%emt 0:00:38]} 21. Qxg5 {[%emt 0:00:03]} Qf7 {[%emt 0:00:46]} 22. Rb3 {[%emt 0:01:12]} Bxf2+ {[%emt 0:00:32]} 23. Kh1 {[%emt 0:00:02]} Qg7 {[%emt 0:00:13]} 24. Rf3 {[%emt 0:01:39]} Rxf3 {[%emt 0:00:41]} 25. Bxf3 {[%emt 0:00:01]} Bd4 {[%emt 0:01:33]} 26. Bg2 {[%emt 0:00:23]} Kh7 {[%emt 0:00:48]} 27. Qh5+ {[%emt 0:00:30]} Kg8 {[%emt 0:00:17]} 28. Rf5 {[%emt 0:00:52]} Be3 {[%emt 0:00:19]} 29. Rf3 {[%emt 0:02:17]} Bf4 {[%emt 0:01:17]} 30. g5 {[%emt 0:01:05]} c6 {[%emt 0:00:38]} 31. Qg4 {[%emt 0:00:10]} Re8 {[%emt 0:00:29]} 32. dxc6 {[%emt 0:00:30]} bxc6 {[%emt 0:00:02]} 33. Rc3 {[%emt 0:00:06]} Qe7 {[%emt 0:00:41]} 34. Ng1 {[%emt 0:00:55]} c5 {[%emt 0:00:46]} 35. Nf3 {[%emt 0:00:02]} cxb4 {[%emt 0:00:09]} 36. axb4 {[%emt 0:00:02]} Rb8 {[%emt 0:00:19]} 37. Nxh4 {[%emt 0:00:31]} Nxh4 {[%emt 0:00:12]} 38. Qxh4 {[%emt 0:00:01]} d5 {[%emt 0:00:14]} 39. Qg4 {[%emt 0:00:48]} d4 {[%emt 0:00:10]} 40. Rc8+ {[%emt 0:00:16]} Rxc8 {[%emt 0:00:11]} 41. Qxc8+ {[%emt 0:00:02]} Kg7 {[%emt 0:00:07]} 42. Qxa6 {[%emt 0:00:41]} Qxg5 {[%emt 0:00:04]} 43. Qb7+ {[%emt 0:00:20]} Kg6 {[%emt 0:00:06]} 44. Qc6+ {[%emt 0:00:03]} Kh5 {[%emt 0:00:09]} 45. Qe8+ {[%emt 0:00:20]} Kh4 {[%emt 0:00:07]} 46. Qd7 {[%emt 0:00:51]} Qh5 {[%emt 0:00:33]} 47. Qe7+ {[%emt 0:01:05]} Kg3 {[%emt 0:00:09]} 48. Qg7+ {[%emt 0:00:11]} Kf2 {[%emt 0:00:02]} 49. Qg4 {[%emt 0:00:01]} Qxg4 {[%emt 0:00:06]} 50. hxg4 {[%emt 0:00:01] Check Result:-#4} d3 {[%emt 0:00:02]} 0-1

[Event "Asian Amateur Rapid 2024"]
[Site "Al Ain"]
[Date "2024.12.15"]
[Round "6.8"]
[White "Al Namas, Kanan"]
[Black "Umarov, Mukhammadrizo"]
[Result "1/2-1/2"]
[ECO "B40"]
[WhiteElo "1813"]
[BlackElo "1902"]
[Annotator "NA COMBH"]
[PlyCount "143"]
[EventDate "2024.12.15"]
[EventType "swiss"]
[EventCountry "UAE"]
[SourceTitle "playchess.com"]
[Source "ChessBase"]
[SourceQuality "1"]
[TimeControl "900+10"]

1. e4 {[%emt 0:00:01]} c5 {[%emt 0:00:05]} 2. Nf3 {[%emt 0:00:02]} e6 {[%emt 0:00:02]} 3. c3 {[%emt 0:00:01]} Nf6 {[%emt 0:00:03]} 4. Bd3 {[%emt 0:00:02]} d5 {[%emt 0:01:22]} 5. e5 {[%emt 0:00:18]} Nfd7 {[%emt 0:00:07]} 6. Bc2 {[%emt 0:00:15]} d4 {[%emt 0:01:31]} 7. cxd4 {[%emt 0:01:10]} cxd4 {[%emt 0:00:02]} 8. O-O {[%emt 0:03:30]} Nc6 {[%emt 0:00:18]} 9. Re1 {[%emt 0:00:33]} a6 {[%emt 0:02:30]} 10. a3 {[%emt 0:03:03]} Qc7 {[%emt 0:00:20]} 11. Qe2 {[%emt 0:01:03]} b5 {[%emt 0:05:22]} 12. Be4 {[%emt 0:00:46]} Bb7 {[%emt 0:00:40]} 13. b4 {[%emt 0:00:38]} Be7 {[%emt 0:00:58]} 14. Bb2 {[%emt 0:00:03]} Qb6 {[%emt 0:01:00]} 15. d3 {[%emt 0:00:20]} Rd8 {[%emt 0:01:24]} 16. Nbd2 {[%emt 0:00:08]} f5 {[%emt 0:00:17]} 17. exf6 {[%emt 0:06:07]} Nxf6 {[%emt 0:00:55]} 18. Bxc6+ {[%emt 0:00:00]} Qxc6 {[%emt 0:00:15]} 19. Qxe6 {[%emt 0:00:00]} Qxe6 {[%emt 0:00:16]} 20. Rxe6 {[%emt 0:00:00]} Bc8 {[%emt 0:00:14]} 21. Re2 {[%emt 0:00:00]} Bf5 {[%emt 0:00:03]} 22. Rae1 {[%emt 0:00:00]} Rd7 {[%emt 0:00:01]} 23. Ne5 {[%emt 0:00:00]} Rc7 {[%emt 0:00:02]} 24. Bxd4 {[%emt 0:00:00]} Kf8 {[%emt 0:00:19]} 25. Ne4 {[%emt 0:00:00]} Nxe4 {[%emt 0:00:58]} 26. dxe4 {[%emt 0:00:00]} Be6 {[%emt 0:00:01]} 27. Nd3 {[%emt 0:00:00]} Bc4 {[%emt 0:00:03]} 28. Re3 {[%emt 0:00:00]} Rd7 {[%emt 0:00:02]} 29. Rf3+ {[%emt 0:00:00]} Ke8 {[%emt 0:00:04]} 30. Bxg7 {[%emt 0:00:00]} Rg8 {[%emt 0:00:03]} 31. Ne5 {[%emt 0:00:00]} Rxg7 {[%emt 0:00:12]} 32. Nxd7 {[%emt 0:00:00]} Kxd7 {[%emt 0:00:02]} 33. g3 {[%emt 0:00:00]} Ke6 {[%emt 0:00:14]} 34. Rf5 {[%emt 0:02:50]} Bf6 {[%emt 0:00:22]} 35. Rc5 {[%emt 0:00:00]} Ra7 {[%emt 0:00:22]} 36. e5 {[%emt 0:00:00]} Be7 {[%emt 0:00:07]} 37. Rc6+ {[%emt 0:00:00]} Kf5 {[%emt 0:00:15]} 38. f4 {[%emt 0:00:00]} a5 {[%emt 0:00:13]} 39. Kf2 {[%emt 0:00:09]} axb4 {[%emt 0:00:02]} 40. Rd1 {[%emt 0:00:06]} bxa3 {[%emt 0:00:08]} 41. Kf3 {[%emt 0:00:02]} h5 {[%emt 0:00:29]} 42. h3 {[%emt 0:00:01]} Be2+ {[%emt 0:00:12]} 43. Kxe2 {[%emt 0:00:02]} Ke4 {[%emt 0:00:25]} 44. Ra1 {[%emt 0:00:11]} b4 {[%emt 0:00:00]} 45. Rb6 {[%emt 0:00:08]} Kd4 {[%emt 0:00:00]} 46. Kd2 {[%emt 0:00:02]} Kc5 {[%emt 0:00:00]} 47. Rb8 {[%emt 0:00:02]} Kc4 {[%emt 0:00:04]} 48. Kc2 {[%emt 0:00:01]} Bc5 {[%emt 0:00:09]} 49. g4 {[%emt 0:00:18]} Bd4 {[%emt 0:00:01]} 50. Rc8+ {[%emt 0:00:10]} Kd5 {[%emt 0:00:05]} 51. Ra2 {[%emt 0:00:02]} Bc3 {[%emt 0:00:19]} 52. Kb3 {[%emt 0:00:44]} hxg4 {[%emt 0:00:02]} 53. hxg4 {[%emt 0:00:01]} Ke4 {[%emt 0:00:06]} 54. Rc4+ {[%emt 0:00:01]} Kd5 {[%emt 0:00:02]} 55. g5 {[%emt 0:00:19]} Rh7 {[%emt 0:00:18]} 56. Rxc3 {[%emt 0:00:14]} bxc3 {[%emt 0:00:04]} 57. Rxa3 {[%emt 0:00:13]} Kd4 {[%emt 0:00:14]} 58. Ra8 {[%emt 0:00:10]} Rb7+ {[%emt 0:00:02]} 59. Kc2 {[%emt 0:00:02]} Rb2+ {[%emt 0:00:02]} 60. Kc1 {[%emt 0:00:03]} Rf2 {[%emt 0:00:11]} 61. g6 {[%emt 0:00:09]} Rf1+ {[%emt 0:00:16]} 62. Kc2 {[%emt 0:00:02]} Rf2+ {[%emt 0:00:05]} 63. Kd1 {[%emt 0:00:54]} Rf1+ {[%emt 0:00:41]} 64. Ke2 {[%emt 0:00:01]} c2 {[%emt 0:00:01]} 65. Rc8 {[%emt 0:00:15]} c1=Q {[%emt 0:00:09]} 66. Rxc1 {[%emt 0:00:02]} Rxc1 {[%emt 0:00:02]} 67. Kf3 {[%emt 0:00:04]} Rg1 {[%emt 0:00:07]} 68. e6 {[%emt 0:00:11]} Rxg6 {[%emt 0:00:11]} 69. f5 {[%emt 0:00:01]} Rh6 {[%emt 0:00:39]} 70. e7 {[%emt 0:00:13]} Rh8 {[%emt 0:00:01]} 71. f6 {[%emt 0:00:01]} Ke5 {[%emt 0:00:03] #10} 72. f7 {[%emt 0:00:02]} 1/2-1/2

[Event "Asian Amateur Rapid 2024"]
[Site "Al Ain"]
[Date "2024.12.15"]
[Round "6.9"]
[White "Medetuly, Nurdaulet"]
[Black "Fedorov, Grigory"]
[Result "1/2-1/2"]
[ECO "E94"]
[WhiteElo "1618"]
[BlackElo "1916"]
[Annotator "NA COMBH"]
[PlyCount "144"]
[EventDate "2024.12.15"]
[EventType "swiss"]
[EventCountry "UAE"]
[SourceTitle "playchess.com"]
[Source "ChessBase"]
[SourceQuality "1"]
[TimeControl "900+10"]

1. d4 {[%emt 0:00:02]} Nf6 {[%emt 0:00:01]} 2. c4 {[%emt 0:00:01]} g6 {[%emt 0:00:02]} 3. Nc3 {[%emt 0:00:09]} Bg7 {[%emt 0:00:02]} 4. e4 {[%emt 0:00:01]} d6 {[%emt 0:00:01]} 5. Nf3 {[%emt 0:00:03]} O-O {[%emt 0:00:03]} 6. Be2 {[%emt 0:00:01]} Nbd7 {[%emt 0:00:02]} 7. O-O {[%emt 0:00:02]} e5 {[%emt 0:00:02]} 8. dxe5 {[%emt 0:00:16]} dxe5 {[%emt 0:00:11]} 9. Bg5 {[%emt 0:00:12]} h6 {[%emt 0:00:15]} 10. Be3 {[%emt 0:00:47]} Ng4 {[%emt 0:00:11]} 11. Bd2 {[%emt 0:00:01]} f5 {[%emt 0:00:43]} 12. h3 {[%emt 0:00:22]} Ngf6 {[%emt 0:00:29]} 13. exf5 {[%emt 0:02:17]} gxf5 {[%emt 0:00:02]} 14. Nh4 {[%emt 0:00:03]} Nc5 {[%emt 0:01:04]} 15. Be3 {[%emt 0:00:12]} Nfe4 {[%emt 0:01:48]} 16. Ng6 {[%emt 0:00:47]} Nxc3 {[%emt 0:05:55]} 17. bxc3 {[%emt 0:00:28]} Ne4 {[%emt 0:00:44]} 18. Nxf8 {[%emt 0:01:17]} Qxf8 {[%emt 0:00:02]} 19. Qc2 {[%emt 0:01:43]} Be6 {[%emt 0:00:51]} 20. Bd3 {[%emt 0:01:16]} Ng5 {[%emt 0:01:57]} 21. Bxg5 {[%emt 0:00:51]} hxg5 {[%emt 0:00:02]} 22. Rab1 {[%emt 0:00:56]} e4 {[%emt 0:00:04]} 23. Be2 {[%emt 0:00:29]} b6 {[%emt 0:00:05]} 24. Rbd1 {[%emt 0:01:25]} Qc5 {[%emt 0:00:06]} 25. Qb3 {[%emt 0:01:39]} f4 {[%emt 0:00:40]} 26. Qb4 {[%emt 0:00:55]} Qc6 {[%emt 0:00:30]} 27. Qb5 {[%emt 0:00:36]} Qxb5 {[%emt 0:00:33]} 28. cxb5 {[%emt 0:00:02]} Bxc3 {[%emt 0:00:06]} 29. Rc1 {[%emt 0:00:11]} Be5 {[%emt 0:00:04]} 30. Bc4 {[%emt 0:00:24]} Kf7 {[%emt 0:00:01]} 31. Rfe1 {[%emt 0:00:31]} e3 {[%emt 0:00:18]} 32. Bxe6+ {[%emt 0:00:19]} Kxe6 {[%emt 0:00:01]} 33. fxe3 {[%emt 0:00:01]} Kf5 {[%emt 0:00:09]} 34. e4+ {[%emt 0:00:34]} Ke6 {[%emt 0:00:13]} 35. Rc6+ {[%emt 0:00:15]} Kf7 {[%emt 0:00:02]} 36. Rd1 {[%emt 0:00:07]} Bd6 {[%emt 0:00:14]} 37. Rd5 {[%emt 0:00:21]} Re8 {[%emt 0:00:08]} 38. Rxg5 {[%emt 0:00:44]} Rxe4 {[%emt 0:00:02]} 39. Kf2 {[%emt 0:00:34]} Rb4 {[%emt 0:00:39]} 40. Rc2 {[%emt 0:00:38]} Kf6 {[%emt 0:00:27]} 41. Rd5 {[%emt 0:00:15]} Ke6 {[%emt 0:00:48]} 42. Rh5 {[%emt 0:00:10]} Kf6 {[%emt 0:02:14]} 43. Kf3 {[%emt 0:00:01]} Bc5 {[%emt 0:00:08]} 44. Rhxc5 {[%emt 0:00:14]} bxc5 {[%emt 0:00:02]} 45. Rxc5 {[%emt 0:00:01]} Rb2 {[%emt 0:00:13]} 46. Rxc7 {[%emt 0:00:20]} Rxa2 {[%emt 0:00:05]} 47. Kxf4 {[%emt 0:00:10]} Ra4+ {[%emt 0:00:01]} 48. Kf3 {[%emt 0:00:04]} Ke5 {[%emt 0:00:08]} 49. g4 {[%emt 0:00:14]} Ra3+ {[%emt 0:00:02]} 50. Kg2 {[%emt 0:00:02]} Kd6 {[%emt 0:00:13]} 51. Rc2 {[%emt 0:00:14]} Ra5 {[%emt 0:00:14]} 52. Rb2 {[%emt 0:00:03]} Ke5 {[%emt 0:00:15]} 53. b6 {[%emt 0:00:24]} axb6 {[%emt 0:00:02]} 54. Rxb6 {[%emt 0:00:01]} Kf4 {[%emt 0:00:05]} 55. Rb4+ {[%emt 0:00:04]} Kg5 {[%emt 0:00:04]} 56. Re4 {[%emt 0:00:10]} Ra2+ {[%emt 0:00:01]} 57. Kf3 {[%emt 0:00:04]} Kh4 {[%emt 0:00:10]} 58. Re8 {[%emt 0:00:31]} Ra3+ {[%emt 0:00:06]} 59. Re3 {[%emt 0:00:02]} Ra4 {[%emt 0:00:21]} 60. Re7 {[%emt 0:00:18]} Ra3+ {[%emt 0:00:03]} 61. Kf4 {[%emt 0:00:09]} Ra4+ {[%emt 0:00:29]} 62. Re4 {[%emt 0:00:07]} Ra5 {[%emt 0:00:29]} 63. Re5 {[%emt 0:00:06]} Ra4+ {[%emt 0:00:02]} 64. Kf5 {[%emt 0:00:09]} Kxh3 {[%emt 0:00:06]} 65. g5 {[%emt 0:00:14]} Kh4 {[%emt 0:00:11]} 66. g6 {[%emt 0:00:06]} Kh5 {[%emt 0:00:29]} 67. g7 {[%emt 0:00:18]} Ra8 {[%emt 0:00:05]} 68. Kf6+ {[%emt 0:00:06]} Kh6 {[%emt 0:00:01]} 69. Kf7 {[%emt 0:00:20]} Ra7+ {[%emt 0:00:17]} 70. Kf6 {[%emt 0:00:07]} Rxg7 {[%emt 0:00:19]} 71. Re1 {[%emt 0:00:03]} Rg6+ {[%emt 0:00:04]} 72. Kf7 {[%emt 0:00:01] Check Result:0.00} Rg7+ {[%emt 0:00:06]} 1/2-1/2

[Event "Asian Amateur Rapid 2024"]
[Site "Al Ain"]
[Date "2024.12.15"]
[Round "6.10"]
[White "Farhaan, M."]
[Black "Al Hinai, Qusay"]
[Result "1-0"]
[ECO "D36"]
[WhiteElo "1695"]
[BlackElo "1862"]
[Annotator "NA COMBH"]
[PlyCount "131"]
[EventDate "2024.12.15"]
[EventType "swiss"]
[EventCountry "UAE"]
[SourceTitle "playchess.com"]
[Source "ChessBase"]
[SourceQuality "1"]
[TimeControl "900+10"]

1. d4 {[%emt 0:00:01]} d5 {[%emt 0:00:00]} 2. c4 {[%emt 0:00:01]} e6 {[%emt 0:00:01]} 3. Nc3 {[%emt 0:00:01]} Nf6 {[%emt 0:00:02]} 4. cxd5 {[%emt 0:00:01]} exd5 {[%emt 0:00:02]} 5. Bg5 {[%emt 0:00:02]} Be7 {[%emt 0:00:00]} 6. Qc2 {[%emt 0:00:01]} c6 {[%emt 0:00:01]} 7. e3 {[%emt 0:00:03]} h6 {[%emt 0:00:02]} 8. Bh4 {[%emt 0:00:01]} O-O {[%emt 0:00:02]} 9. Bd3 {[%emt 0:00:01]} Re8 {[%emt 0:00:06]} 10. Nge2 {[%emt 0:00:02]} Nbd7 {[%emt 0:00:01]} 11. O-O {[%emt 0:00:03]} Nf8 {[%emt 0:00:01]} 12. Rae1 {[%emt 0:00:03]} Ne4 {[%emt 0:16:52]} 13. Bg3 {[%emt 0:00:15]} Nxg3 14. Nxg3 {[%emt 0:00:01]} Bd6 {[%emt 0:00:00]} 15. a3 {[%emt 0:00:04]} a5 {[%emt 0:00:00]} 16. Na4 {[%emt 0:00:05]} Bxg3 {[%emt 0:00:00]} 17. hxg3 {[%emt 0:00:02]} Qg5 {[%emt 0:00:00]} 18. Rc1 {[%emt 0:00:13]} h5 {[%emt 0:00:00]} 19. Nb6 {[%emt 0:00:23]} Rb8 {[%emt 0:00:00]} 20. Qd2 {[%emt 0:00:02]} h4 {[%emt 0:00:00]} 21. gxh4 {[%emt 0:00:01]} Qxh4 {[%emt 0:00:00]} 22. g3 {[%emt 0:00:25]} Qg5 {[%emt 0:00:00]} 23. Kg2 {[%emt 0:00:17]} Bf5 {[%emt 0:00:00]} 24. Bxf5 {[%emt 0:00:23]} Qxf5 {[%emt 0:00:00]} 25. Qc2 {[%emt 0:00:01]} Qxc2 {[%emt 0:00:00]} 26. Rxc2 {[%emt 0:00:02]} Ne6 {[%emt 0:00:00]} 27. Rh1 {[%emt 0:00:01]} g6 {[%emt 0:00:00]} 28. Nd7 {[%emt 0:00:05]} Kg7 {[%emt 0:00:00]} 29. Nxb8 {[%emt 0:00:02]} Rxb8 {[%emt 0:00:00]} 30. Rh2 {[%emt 0:00:06]} Ng5 {[%emt 0:00:00]} 31. Rc1 {[%emt 0:00:08]} Ne4 {[%emt 0:00:00]} 32. Rch1 {[%emt 0:00:02]} Nd2 {[%emt 0:00:00]} 33. g4 {[%emt 0:00:10]} Nc4 {[%emt 0:00:00]} 34. g5 {[%emt 0:00:02]} Rg8 {[%emt 0:00:00]} 35. Rh7+ {[%emt 0:00:21]} Kf8 {[%emt 0:00:00]} 36. Rb1 {[%emt 0:00:17]} Ke7 {[%emt 0:00:00]} 37. b3 {[%emt 0:00:19]} Nd2 {[%emt 0:00:00]} 38. Rb2 {[%emt 0:00:01]} Ne4 {[%emt 0:00:00]} 39. f4 {[%emt 0:00:06]} Nd6 {[%emt 0:00:00]} 40. Kf3 {[%emt 0:00:06]} Kd7 {[%emt 0:00:00]} 41. Rbh2 {[%emt 0:00:05]} Ra8 {[%emt 0:00:00]} 42. R2h6 {[%emt 0:00:09]} Ke6 {[%emt 0:00:00]} 43. Rh1 {[%emt 0:00:44]} Ra6 {[%emt 0:00:00]} 44. Rb1 {[%emt 0:00:14]} Rb6 {[%emt 0:00:00]} 45. Rhh1 {[%emt 0:00:02]} Nb5 {[%emt 0:00:00]} 46. Ra1 {[%emt 0:00:51]} Nc3 {[%emt 0:00:00]} 47. b4 {[%emt 0:00:02]} a4 {[%emt 0:00:00]} 48. Rac1 {[%emt 0:00:05]} Ne4 {[%emt 0:00:00]} 49. Rh8 {[%emt 0:00:14]} Nd2+ {[%emt 0:00:00]} 50. Ke2 {[%emt 0:00:01]} Nc4 {[%emt 0:00:00]} 51. Rc3 {[%emt 0:00:18]} Ra6 {[%emt 0:00:00]} 52. Rb8 {[%emt 0:00:04]} b5 {[%emt 0:00:00]} 53. Kf3 {[%emt 0:00:28]} Nd2+ {[%emt 0:00:00]} 54. Kg4 {[%emt 0:00:04]} Ne4 {[%emt 0:00:00]} 55. Rc2 {[%emt 0:00:25]} Nd6 {[%emt 0:00:00]} 56. Kf3 {[%emt 0:00:09]} Nc4 {[%emt 0:00:00]} 57. Ra2 {[%emt 0:00:20]} Nd6 {[%emt 0:00:00]} 58. Rd8 {[%emt 0:00:05]} Ke7 {[%emt 0:00:00]} 59. Rb8 {[%emt 0:00:07]} Kd7 {[%emt 0:00:00]} 60. Rh2 {[%emt 0:00:04]} Kc7 {[%emt 0:00:00]} 61. Rf8 {[%emt 0:00:10]} Kd7 {[%emt 0:00:00]} 62. Rh7 {[%emt 0:00:52]} Ke7 {[%emt 0:00:00]} 63. Rb8 {[%emt 0:00:03]} Ra7 {[%emt 0:00:00]} 64. Rg8 {[%emt 0:00:24]} Nc4 {[%emt 0:00:00]} 65. Rxg6 {[%emt 0:00:09]} Nxa3 {[%emt 0:00:00] Check Result:#9} 66. Rgg7 {[%emt 0:00:11]} 1-0

[Event "Asian Amateur Rapid 2024"]
[Site "Al Ain"]
[Date "2024.12.15"]
[Round "6.11"]
[White "Atharv Bansal"]
[Black "Hamdan Edrees, Alhamed"]
[Result "1-0"]
[ECO "B22"]
[WhiteElo "1896"]
[BlackElo "1939"]
[Annotator "NA COMBH"]
[PlyCount "98"]
[EventDate "2024.12.15"]
[EventType "swiss"]
[EventCountry "UAE"]
[SourceTitle "playchess.com"]
[Source "ChessBase"]
[SourceQuality "1"]
[TimeControl "900+10"]

1. e4 {[%emt 0:00:02]} c5 {[%emt 0:00:00]} 2. c3 {[%emt 0:00:02]} d5 {[%emt 0:00:02]} 3. exd5 {[%emt 0:00:01]} Qxd5 {[%emt 0:00:02]} 4. d4 {[%emt 0:00:01]} Nf6 {[%emt 0:00:09]} 5. Nf3 {[%emt 0:00:01]} e6 {[%emt 0:00:01]} 6. Be2 {[%emt 0:00:03]} a6 {[%emt 0:00:02]} 7. Be3 {[%emt 0:00:19]} cxd4 {[%emt 0:00:02]} 8. Bxd4 {[%emt 0:00:02]} Be7 {[%emt 0:00:04]} 9. O-O {[%emt 0:00:09]} Nbd7 {[%emt 0:16:18]} 10. Nbd2 {[%emt 0:00:40]} b6 {[%emt 0:00:00]} 11. Nc4 {[%emt 0:00:19]} Qc6 {[%emt 0:00:00]} 12. Nfe5 {[%emt 0:00:08]} Nxe5 {[%emt 0:00:00]} 13. Nxe5 {[%emt 0:00:02]} Qc7 {[%emt 0:00:00]} 14. Qb3 {[%emt 0:00:24]} b5 {[%emt 0:00:00]} 15. a4 {[%emt 0:00:05]} Bd6 {[%emt 0:00:00]} 16. f4 {[%emt 0:00:36]} bxa4 {[%emt 0:00:00]} 17. Qxa4+ {[%emt 0:00:01]} Nd7 {[%emt 0:00:00]} 18. Bf3 {[%emt 0:01:04]} Rb8 {[%emt 0:00:00]} 19. Bc6 {[%emt 0:02:27]} f6 {[%emt 0:00:00]} 20. Nc4 {[%emt 0:00:09]} O-O {[%emt 0:00:00]} 21. Nxd6 {[%emt 0:02:17]} Qxd6 {[%emt 0:00:00]} 22. Rad1 {[%emt 0:01:05]} Nc5 {[%emt 0:00:00]} 23. Qc4 {[%emt 0:00:02]} Qxc6 {[%emt 0:00:00]} 24. Qxc5 {[%emt 0:00:02]} Qe4 {[%emt 0:00:00]} 25. b4 {[%emt 0:00:02]} Rb5 {[%emt 0:00:00]} 26. Qd6 {[%emt 0:00:43]} Bb7 {[%emt 0:00:00]} 27. Rf2 {[%emt 0:00:34]} Rd5 {[%emt 0:00:00]} 28. Qb6 {[%emt 0:00:08]} Rd7 {[%emt 0:00:00]} 29. Rdf1 {[%emt 0:00:58]} h5 {[%emt 0:00:00]} 30. h3 {[%emt 0:00:04]} h4 {[%emt 0:00:00]} 31. Qc5 {[%emt 0:00:42]} Rd5 {[%emt 0:00:00]} 32. Qc4 {[%emt 0:00:06]} Rc8 {[%emt 0:00:00]} 33. Qe2 {[%emt 0:00:02]} Rb5 {[%emt 0:00:00]} 34. Qg4 {[%emt 0:00:02]} Kf7 {[%emt 0:00:00]} 35. Qxh4 {[%emt 0:00:55]} a5 {[%emt 0:00:00]} 36. Bc5 {[%emt 0:00:16]} axb4 {[%emt 0:00:00]} 37. cxb4 {[%emt 0:00:05]} Bd5 {[%emt 0:00:00]} 38. Qh5+ {[%emt 0:00:12]} Kg8 {[%emt 0:00:00]} 39. Qd1 {[%emt 0:00:31]} Ra8 {[%emt 0:00:00]} 40. Re1 {[%emt 0:00:03]} Qc4 {[%emt 0:00:00]} 41. Qe2 {[%emt 0:00:08]} Qc3 {[%emt 0:00:00]} 42. Rd1 {[%emt 0:00:59]} Bc4 {[%emt 0:00:00]} 43. Qe4 {[%emt 0:00:17]} Rbb8 {[%emt 0:01:07]} 44. Rc2 {[%emt 0:00:44]} Bd5 {[%emt 0:00:02]} 45. Qe2 {[%emt 0:01:47]} Qb3 {[%emt 0:00:26]} 46. Rcd2 {[%emt 0:00:26]} Ra3 {[%emt 0:01:39]} 47. f5 {[%emt 0:00:59]} Re8 {[%emt 0:01:02]} 48. Rxd5 {[%emt 0:00:17]} Ra2 {[%emt 0:00:18]} 49. R5d2 {[%emt 0:00:01] Check Result:#12} Ra6 {[%emt 0:00:03]} 1-0

[Event "Asian Amateur Rapid 2024"]
[Site "Al Ain"]
[Date "2024.12.15"]
[Round "6.12"]
[White "Humaidan Mohamed, Alzaabi"]
[Black "Daneshpour, S.A."]
[Result "0-1"]
[ECO "B25"]
[WhiteElo "1811"]
[BlackElo "1899"]
[Annotator "NA COMBH"]
[PlyCount "135"]
[EventDate "2024.12.15"]
[EventType "swiss"]
[EventCountry "UAE"]
[SourceTitle "playchess.com"]
[Source "ChessBase"]
[SourceQuality "1"]
[TimeControl "900+10"]

1. e4 {[%emt 0:00:02]} c5 {[%emt 0:00:03]} 2. Nc3 {[%emt 0:00:03]} e6 {[%emt 0:00:02]} 3. g3 {[%emt 0:00:02]} Nc6 {[%emt 0:00:06]} 4. Bg2 {[%emt 0:00:02]} d6 {[%emt 0:00:10]} 5. Nge2 {[%emt 0:00:02]} g6 {[%emt 0:00:01]} 6. O-O {[%emt 0:00:04]} Bg7 {[%emt 0:00:02]} 7. d3 {[%emt 0:00:02]} Nge7 {[%emt 0:00:03]} 8. f4 {[%emt 0:00:02]} f5 {[%emt 0:00:03]} 9. h3 {[%emt 0:00:19]} O-O {[%emt 0:00:03]} 10. g4 {[%emt 0:00:02]} Rb8 {[%emt 0:00:18]} 11. Ng3 {[%emt 0:00:03]} Nd4 {[%emt 0:00:21]} 12. g5 {[%emt 0:00:04]} b5 {[%emt 0:00:16]} 13. Nce2 {[%emt 0:00:03]} Bb7 {[%emt 0:00:10]} 14. c3 {[%emt 0:00:14]} Nxe2+ {[%emt 0:00:10]} 15. Qxe2 {[%emt 0:00:02]} e5 {[%emt 0:00:15]} 16. Be3 {[%emt 0:01:44]} a5 {[%emt 0:00:02]} 17. a3 {[%emt 0:00:03]} Kh8 {[%emt 0:00:48]} 18. Rad1 {[%emt 0:00:06]} Qc7 {[%emt 0:00:16]} 19. h4 {[%emt 0:00:55]} d5 {[%emt 0:00:13]} 20. h5 {[%emt 0:01:47]} exf4 {[%emt 0:00:13]} 21. Bxf4 {[%emt 0:00:11]} Be5 {[%emt 0:00:03]} 22. Bxe5+ {[%emt 0:00:34]} Qxe5 {[%emt 0:00:03]} 23. Nh1 {[%emt 0:04:28]} fxe4 {[%emt 0:00:40]} 24. dxe4 {[%emt 0:01:59]} Qxg5 {[%emt 0:00:32]} 25. hxg6 {[%emt 0:00:08]} Nxg6 {[%emt 0:00:18]} 26. exd5 {[%emt 0:00:42]} Nf4 {[%emt 0:01:24]} 27. Rxf4 {[%emt 0:00:35]} Rxf4 {[%emt 0:01:07]} 28. Nf2 {[%emt 0:01:25]} Qg7 {[%emt 0:02:37]} 29. Rd3 {[%emt 0:01:17]} c4 {[%emt 0:00:38]} 30. Rg3 {[%emt 0:00:22]} Qxg3 {[%emt 0:01:53]} 31. Qe5+ {[%emt 0:00:01]} Qg7 {[%emt 0:00:05]} 32. Qxf4 {[%emt 0:00:56]} Rd8 {[%emt 0:01:21]} 33. Ng4 {[%emt 0:01:16]} Rf8 {[%emt 0:01:47]} 34. Qe4 {[%emt 0:00:48]} Bxd5 {[%emt 0:00:33]} 35. Qxd5 {[%emt 0:00:11]} Qxg4 {[%emt 0:00:02]} 36. Qxb5 {[%emt 0:00:09]} Qd1+ {[%emt 0:00:16]} 37. Kh2 {[%emt 0:00:03]} Qd6+ {[%emt 0:00:03]} 38. Kg1 {[%emt 0:00:11]} Qe6 {[%emt 0:02:34]} 39. Qxa5 {[%emt 0:00:24]} Qe3+ {[%emt 0:00:12]} 40. Kh1 {[%emt 0:00:10]} Qe1+ {[%emt 0:00:11]} 41. Kh2 {[%emt 0:00:01]} Qh4+ {[%emt 0:00:10]} 42. Kg1 {[%emt 0:00:03]} Qe1+ {[%emt 0:00:06]} 43. Kh2 {[%emt 0:00:01]} Re8 {[%emt 0:00:35]} 44. Qg5 {[%emt 0:00:39]} Qe5+ {[%emt 0:00:22]} 45. Qxe5+ {[%emt 0:00:01]} Rxe5 {[%emt 0:00:01]} 46. Bf1 {[%emt 0:00:01]} Rb5 {[%emt 0:00:15]} 47. b4 {[%emt 0:00:08]} Re5 {[%emt 0:00:29]} 48. Bxc4 {[%emt 0:00:18]} Re3 {[%emt 0:00:01]} 49. a4 {[%emt 0:00:04]} Rxc3 {[%emt 0:00:01]} 50. Bd5 {[%emt 0:00:06]} Rd3 {[%emt 0:00:26]} 51. Be6 {[%emt 0:00:08]} Rd4 {[%emt 0:00:05]} 52. a5 {[%emt 0:00:34]} Rxb4 {[%emt 0:00:02]} 53. a6 {[%emt 0:00:02]} Ra4 {[%emt 0:00:12]} 54. Bc8 {[%emt 0:00:02]} Ra3 {[%emt 0:00:05]} 55. Kg2 {[%emt 0:00:10]} Kg7 {[%emt 0:00:02]} 56. Kf2 {[%emt 0:00:01]} Kf6 {[%emt 0:00:01]} 57. Ke2 {[%emt 0:00:01]} Ke7 {[%emt 0:00:01]} 58. Kd2 {[%emt 0:00:04]} Kd8 {[%emt 0:00:03]} 59. Bb7 {[%emt 0:00:10]} Kc7 {[%emt 0:00:04]} 60. Ke2 {[%emt 0:00:10]} Rg3 {[%emt 0:00:02]} 61. Bf3 {[%emt 0:00:14]} Kb6 {[%emt 0:00:08]} 62. Kf2 {[%emt 0:00:03]} Rg7 {[%emt 0:00:07]} 63. Bb7 {[%emt 0:00:14]} h5 {[%emt 0:00:03]} 64. Bc8 {[%emt 0:00:01]} h4 {[%emt 0:00:05]} 65. Bb7 {[%emt 0:00:01]} h3 {[%emt 0:00:07]} 66. Kf1 {[%emt 0:00:05]} Ka7 {[%emt 0:00:09]} 67. Kf2 {[%emt 0:00:04]} h2 {[%emt 0:00:10] Check Result:-#21} 68. Bc6 {[%emt 0:01:33]} 0-1